[Event "December 12 Late 2023"]
[Site "https://www.chess.com"]
[Date "2023.12.12"]
[Round "9"]
[White "Vargas, Mauricio"]
[Black "Novikova, Margarita"]
[Result "1-0"]
[Board "100"]
[TimeControl "180+1"]
[WhiteFideId "4404572"]
[BlackFideId "14109689"]
[WhiteElo "1830"]
[BlackElo "2127"]
[WhiteTeam "COL"]
[BlackTeam "GER"]
[WhiteClock "0:00:03"]
[BlackClock "0:00:11"]

1. e4 {[%clk 0:02:59]}  e5 {[%clk 0:02:58]} 2. Nf3 {[%clk 0:02:58]}  Nc6 {[%clk 0:02:58]} 3. d4 {[%clk 0:02:58]}  exd4 {[%clk 0:02:56]} 4. Bc4 {[%clk 0:02:59]}  Nf6 {[%clk 0:02:43]} 5. e5 {[%clk 0:02:59]}  d5 {[%clk 0:02:43]} 6. Bb5 {[%clk 0:02:58]}  Ne4 {[%clk 0:02:42]} 7. Nxd4 {[%clk 0:02:59]}  Bd7 {[%clk 0:02:40]} 8. Bxc6 {[%clk 0:02:59]}  bxc6 {[%clk 0:02:39]} 9. O-O {[%clk 0:02:57]}  Be7 {[%clk 0:02:34]} 10. f3 {[%clk 0:02:56]}  Nc5 {[%clk 0:02:34]} 11. f4 {[%clk 0:02:50]}  O-O {[%clk 0:02:32]} 12. f5 {[%clk 0:02:48]}  Bg5 {[%clk 0:02:21]} 13. f6 {[%clk 0:02:39]}  Bxc1 {[%clk 0:02:16]} 14. Qxc1 {[%clk 0:02:36]}  Ne4 {[%clk 0:02:12]} 15. Nc3 {[%clk 0:02:30]}  Re8 {[%clk 0:01:54]} 16. Nxe4 {[%clk 0:02:28]}  Rxe5 {[%clk 0:01:33]} 17. Nc5 {[%clk 0:02:05]}  Bg4 {[%clk 0:01:22]} 18. Qf4 {[%clk 0:01:56]}  Qxf6 {[%clk 0:01:09]} 19. Qxg4 {[%clk 0:01:51]}  Re4 {[%clk 0:01:02]} 20. Nxe4 {[%clk 0:01:49]}  Qxd4+ {[%clk 0:01:00]} 21. Nf2 {[%clk 0:01:45]}  Qxb2 {[%clk 0:01:00]} 22. Qf5 {[%clk 0:01:32]}  g6 {[%clk 0:00:57]} 23. Qd3 {[%clk 0:01:29]}  f5 {[%clk 0:00:52]} 24. Nh3 {[%clk 0:01:26]}  Qb6+ {[%clk 0:00:52]} 25. Kh1 {[%clk 0:01:24]}  Qc5 {[%clk 0:00:51]} 26. Rfe1 {[%clk 0:01:15]}  Rb8 {[%clk 0:00:49]} 27. Qe3 {[%clk 0:01:13]}  d4 {[%clk 0:00:42]} 28. Qe6+ {[%clk 0:01:11]}  Kf8 {[%clk 0:00:38]} 29. Ng5 {[%clk 0:01:06]}  Kg7 {[%clk 0:00:33]} 30. h4 {[%clk 0:00:56]}  Kh6 {[%clk 0:00:28]} 31. Qe7 {[%clk 0:00:46]}  Qxe7 {[%clk 0:00:26]} 32. Rxe7 {[%clk 0:00:45]}  Kh5 {[%clk 0:00:26]} 33. Rxh7+ {[%clk 0:00:43]}  Kg4 {[%clk 0:00:26]} 34. Nf3 {[%clk 0:00:31]}  c5 {[%clk 0:00:25]} 35. Rg7 {[%clk 0:00:29]}  Kg3 {[%clk 0:00:23]} 36. Rxg6+ {[%clk 0:00:28]}  Kf2 {[%clk 0:00:23]} 37. Rf6 {[%clk 0:00:21]}  Rd8 {[%clk 0:00:18]} 38. Rxf5 {[%clk 0:00:20]}  Kg3 {[%clk 0:00:17]} 39. h5 {[%clk 0:00:19]}  c4 {[%clk 0:00:16]} 40. Rg5+ {[%clk 0:00:18]}  Kf4 {[%clk 0:00:15]} 41. Rf1 {[%clk 0:00:17]}  Ke3 {[%clk 0:00:14]} 42. Re5+ {[%clk 0:00:16]}  Kf4 {[%clk 0:00:14]} 43. Re7 {[%clk 0:00:13]}  d3 {[%clk 0:00:13]} 44. cxd3 {[%clk 0:00:12]}  cxd3 {[%clk 0:00:13]} 45. Ne5+ {[%clk 0:00:10]}  Kg5 {[%clk 0:00:13]} 46. Rg7+ {[%clk 0:00:06]}  Kh6 {[%clk 0:00:12]} 47. Rg6+ {[%clk 0:00:05]}  Kxh5 {[%clk 0:00:12]} 48. Rf5+ {[%clk 0:00:04]}  Kh4 {[%clk 0:00:11]} 49. Rg4# {[%clk 0:00:03]} 1-0

[Event "December 12 Late 2023"]
[Site "https://www.chess.com"]
[Date "2023.12.12"]
[Round "9"]
[White "Oliveira, Tiago Batista"]
[Black "Su, Dion"]
[Result "1-0"]
[Board "102"]
[TimeControl "180+1"]
[WhiteFideId "2108291"]
[BlackFideId "2029731"]
[WhiteElo "2074"]
[BlackElo "2354"]
[WhiteTeam "BRA"]
[BlackTeam "USA"]
[WhiteClock "0:00:09"]
[BlackClock "0:00:36"]

1. d4 {[%clk 0:02:58]}  e6 {[%clk 0:02:59]} 2. c4 {[%clk 0:02:58]}  Nf6 {[%clk 0:02:59]} 3. Nf3 {[%clk 0:02:58]}  Bb4+ {[%clk 0:02:59]} 4. Bd2 {[%clk 0:02:58]}  a5 {[%clk 0:02:58]} 5. g3 {[%clk 0:02:58]}  O-O {[%clk 0:02:58]} 6. Bg2 {[%clk 0:02:58]}  d6 {[%clk 0:02:58]} 7. O-O {[%clk 0:02:58]}  Bxd2 {[%clk 0:02:58]} 8. Qxd2 {[%clk 0:02:58]}  Nbd7 {[%clk 0:02:58]} 9. Nc3 {[%clk 0:02:59]}  e5 {[%clk 0:02:59]} 10. e4 {[%clk 0:02:56]}  Re8 {[%clk 0:02:55]} 11. Rad1 {[%clk 0:02:51]}  exd4 {[%clk 0:02:54]} 12. Nxd4 {[%clk 0:02:51]}  Nc5 {[%clk 0:02:54]} 13. Rfe1 {[%clk 0:02:50]}  Bd7 {[%clk 0:02:43]} 14. h3 {[%clk 0:02:30]}  Qc8 {[%clk 0:02:34]} 15. Kh2 {[%clk 0:02:28]}  h6 {[%clk 0:02:34]} 16. f4 {[%clk 0:02:26]}  h5 {[%clk 0:02:09]} 17. Qf2 {[%clk 0:02:23]}  h4 {[%clk 0:02:04]} 18. gxh4 {[%clk 0:01:58]}  Bg4 {[%clk 0:01:58]} 19. Rd2 {[%clk 0:01:56]}  Bh5 {[%clk 0:01:55]} 20. Qg3 {[%clk 0:01:52]}  Nh7 {[%clk 0:01:46]} 21. Rg1 {[%clk 0:01:45]}  g6 {[%clk 0:01:44]} 22. f5 {[%clk 0:01:26]}  Kh8 {[%clk 0:01:40]} 23. Bf3 {[%clk 0:01:09]}  Bxf3 {[%clk 0:01:32]} 24. Qxf3 {[%clk 0:01:09]}  Qd8 {[%clk 0:01:32]} 25. fxg6 {[%clk 0:01:06]}  fxg6 {[%clk 0:01:32]} 26. Rg4 {[%clk 0:00:57]}  Rf8 {[%clk 0:01:19]} 27. Qg3 {[%clk 0:00:54]}  c6 {[%clk 0:01:14]} 28. Rxg6 {[%clk 0:00:47]}  Qe7 {[%clk 0:01:13]} 29. Nf5 {[%clk 0:00:45]}  Nxe4 {[%clk 0:01:04]} 30. Nxe4 {[%clk 0:00:43]}  Qxe4 {[%clk 0:01:04]} 31. Nxd6 {[%clk 0:00:31]}  Qe7 {[%clk 0:00:54]} 32. Qc3+ {[%clk 0:00:27]}  Nf6 {[%clk 0:00:51]} 33. Nf5 {[%clk 0:00:19]}  Qe6 {[%clk 0:00:43]} 34. Rh6+ {[%clk 0:00:11]}  Kg8 {[%clk 0:00:40]} 35. Qg3+ {[%clk 0:00:09]}  Kf7 {[%clk 0:00:36]} 36. Qg6# {[%clk 0:00:09]} 1-0

[Event "December 12 Late 2023"]
[Site "https://www.chess.com"]
[Date "2023.12.12"]
[Round "9"]
[White "Gulamirian, Korun"]
[Black "Kostiukov, Alexandr"]
[Result "1/2-1/2"]
[Board "103"]
[TimeControl "180+1"]
[WhiteFideId "4144899"]
[BlackFideId "14108100"]
[WhiteElo "2008"]
[BlackElo "2331"]
[WhiteTeam "RUS"]
[BlackTeam "UKR"]
[WhiteClock "0:00:14"]
[BlackClock "0:00:18"]

1. e4 {[%clk 0:02:58]}  c5 {[%clk 0:02:51]} 2. Be2 {[%clk 0:02:57]}  g6 {[%clk 0:02:46]} 3. f4 {[%clk 0:02:56]}  Bg7 {[%clk 0:02:47]} 4. c3 {[%clk 0:02:56]}  d5 {[%clk 0:02:46]} 5. d3 {[%clk 0:02:54]}  Nc6 {[%clk 0:02:43]} 6. Nf3 {[%clk 0:02:54]}  Nf6 {[%clk 0:02:41]} 7. e5 {[%clk 0:02:45]}  Ng4 {[%clk 0:02:39]} 8. h3 {[%clk 0:02:40]}  Nh6 {[%clk 0:02:38]} 9. O-O {[%clk 0:02:40]}  d4 {[%clk 0:02:35]} 10. c4 {[%clk 0:02:37]}  f6 {[%clk 0:02:30]} 11. Nbd2 {[%clk 0:02:34]}  fxe5 {[%clk 0:02:04]} 12. fxe5 {[%clk 0:02:34]}  O-O {[%clk 0:01:56]} 13. Ne4 {[%clk 0:02:31]}  b6 {[%clk 0:01:55]} 14. Bg5 {[%clk 0:02:00]}  Nf5 {[%clk 0:01:50]} 15. Qd2 {[%clk 0:01:54]}  Nxe5 {[%clk 0:01:45]} 16. Nxe5 {[%clk 0:01:51]}  Bxe5 {[%clk 0:01:45]} 17. Bh6 {[%clk 0:01:51]}  Nxh6 {[%clk 0:01:42]} 18. Qxh6 {[%clk 0:01:50]}  Bg7 {[%clk 0:01:39]} 19. Qh4 {[%clk 0:01:46]}  Bf5 {[%clk 0:01:30]} 20. Ng5 {[%clk 0:01:42]}  h6 {[%clk 0:01:30]} 21. Ne4 {[%clk 0:01:26]}  e5 {[%clk 0:01:22]} 22. Qg3 {[%clk 0:01:16]}  Bxe4 {[%clk 0:01:15]} 23. dxe4 {[%clk 0:01:15]}  Qg5 {[%clk 0:01:06]} 24. Qxg5 {[%clk 0:01:09]}  hxg5 {[%clk 0:01:06]} 25. Bd3 {[%clk 0:01:10]}  Bh6 {[%clk 0:00:53]} 26. Rxf8+ {[%clk 0:01:02]}  Rxf8 {[%clk 0:00:50]} 27. Rf1 {[%clk 0:01:03]}  Rf4 {[%clk 0:00:37]} 28. g3 {[%clk 0:01:01]}  Rxf1+ {[%clk 0:00:36]} 29. Kxf1 {[%clk 0:00:59]}  g4 {[%clk 0:00:37]} 30. hxg4 {[%clk 0:00:53]}  Bc1 {[%clk 0:00:36]} 31. b3 {[%clk 0:00:49]}  Kg7 {[%clk 0:00:36]} 32. Ke2 {[%clk 0:00:43]}  Kf6 {[%clk 0:00:36]} 33. Kd1 {[%clk 0:00:43]}  Be3 {[%clk 0:00:36]} 34. a3 {[%clk 0:00:41]}  Kg5 {[%clk 0:00:35]} 35. Be2 {[%clk 0:00:40]}  Bf2 {[%clk 0:00:35]} 36. b4 {[%clk 0:00:39]}  Bxg3 {[%clk 0:00:34]} 37. bxc5 {[%clk 0:00:34]}  bxc5 {[%clk 0:00:33]} 38. Kc2 {[%clk 0:00:31]}  Kf4 {[%clk 0:00:30]} 39. Kd3 {[%clk 0:00:31]}  Be1 {[%clk 0:00:29]} 40. a4 {[%clk 0:00:30]}  Kg3 {[%clk 0:00:26]} 41. Bd1 {[%clk 0:00:24]}  Kf2 {[%clk 0:00:25]} 42. Bc2 {[%clk 0:00:19]}  Bb4 {[%clk 0:00:23]} 43. Bd1 {[%clk 0:00:18]}  g5 {[%clk 0:00:22]} 44. Be2 {[%clk 0:00:18]}  Ke1 {[%clk 0:00:21]} 45. Bf3 {[%clk 0:00:17]}  Bc3 {[%clk 0:00:19]} 46. Be2 {[%clk 0:00:17]}  Kf2 {[%clk 0:00:18]} 47. Bd1 {[%clk 0:00:16]}  Be1 {[%clk 0:00:16]} 48. Be2 {[%clk 0:00:16]}  Bb4 {[%clk 0:00:16]} 49. Bd1 {[%clk 0:00:16]}  Ke1 {[%clk 0:00:15]} 50. Be2 {[%clk 0:00:16]}  Bd2 {[%clk 0:00:14]} 51. Bf3 {[%clk 0:00:15]}  Bf4 {[%clk 0:00:14]} 52. Be2 {[%clk 0:00:15]}  Kf2 {[%clk 0:00:15]} 53. Bd1 {[%clk 0:00:15]}  Ke1 {[%clk 0:00:15]} 54. Be2 {[%clk 0:00:14]}  Bc1 {[%clk 0:00:16]} 55. Bf3 {[%clk 0:00:14]}  Bb2 {[%clk 0:00:16]} 56. Be2 {[%clk 0:00:14]}  Ba3 {[%clk 0:00:17]} 57. Bf3 {[%clk 0:00:14]}  Bb4 {[%clk 0:00:18]} 58. Be2 {[%clk 0:00:14]}  a5 {[%clk 0:00:15]} 59. Bf3 {[%clk 0:00:14]}  Bc3 {[%clk 0:00:15]} 60. Be2 {[%clk 0:00:14]}  Bb4 {[%clk 0:00:16]} 61. Bf3 {[%clk 0:00:14]}  Bc3 {[%clk 0:00:17]} 62. Be2 {[%clk 0:00:14]}  Bb4 {[%clk 0:00:18]} 1/2-1/2

[Event "December 12 Late 2023"]
[Site "https://www.chess.com"]
[Date "2023.12.12"]
[Round "9"]
[White "Travadon, Loic"]
[Black "Desideri, Ricardo Maruchi"]
[Result "1-0"]
[Board "104"]
[TimeControl "180+1"]
[WhiteFideId "26092131"]
[BlackFideId "2110440"]
[WhiteElo "2126"]
[BlackElo "2005"]
[WhiteTeam "FRA"]
[BlackTeam "BRA"]
[WhiteClock "0:00:39"]
[BlackClock "0:00:02"]

1. e4 {[%clk 0:02:58]}  c5 {[%clk 0:02:59]} 2. Nc3 {[%clk 0:02:57]}  d6 {[%clk 0:02:57]} 3. Nf3 {[%clk 0:02:58]}  Nf6 {[%clk 0:02:55]} 4. d4 {[%clk 0:02:59]}  cxd4 {[%clk 0:02:55]} 5. Nxd4 {[%clk 0:02:59]}  a6 {[%clk 0:02:55]} 6. Be2 {[%clk 0:02:58]}  e6 {[%clk 0:02:54]} 7. g4 {[%clk 0:02:56]}  b5 {[%clk 0:02:54]} 8. g5 {[%clk 0:02:56]}  Nfd7 {[%clk 0:02:53]} 9. Be3 {[%clk 0:02:56]}  Bb7 {[%clk 0:02:48]} 10. Bf3 {[%clk 0:02:54]}  Nb6 {[%clk 0:02:40]} 11. b3 {[%clk 0:02:50]}  Qc7 {[%clk 0:02:37]} 12. Qd2 {[%clk 0:02:47]}  N8d7 {[%clk 0:02:36]} 13. O-O-O {[%clk 0:02:39]}  Rc8 {[%clk 0:02:36]} 14. Kb2 {[%clk 0:02:38]}  Ne5 {[%clk 0:02:26]} 15. Be2 {[%clk 0:02:31]}  Be7 {[%clk 0:02:16]} 16. f4 {[%clk 0:02:29]}  b4 {[%clk 0:02:07]} 17. Na4 {[%clk 0:02:22]}  Nxa4+ {[%clk 0:02:06]} 18. bxa4 {[%clk 0:02:23]}  Nc4+ {[%clk 0:02:00]} 19. Bxc4 {[%clk 0:02:22]}  Qxc4 {[%clk 0:02:00]} 20. Rhe1 {[%clk 0:01:56]}  Bxe4 {[%clk 0:01:56]} 21. Rc1 {[%clk 0:01:46]}  O-O {[%clk 0:01:38]} 22. Nb3 {[%clk 0:01:41]}  d5 {[%clk 0:01:11]} 23. Bd4 {[%clk 0:01:39]}  Qc6 {[%clk 0:01:01]} 24. a5 {[%clk 0:01:24]}  Qa4 {[%clk 0:01:00]} 25. h4 {[%clk 0:01:21]}  Qa3+ {[%clk 0:00:54]} 26. Kb1 {[%clk 0:01:20]}  Rc4 {[%clk 0:00:43]} 27. Bb2 {[%clk 0:01:18]}  Qa4 {[%clk 0:00:39]} 28. h5 {[%clk 0:01:18]}  Rfc8 {[%clk 0:00:34]} 29. h6 {[%clk 0:01:03]}  Rc3 {[%clk 0:00:18]} 30. Qd4 {[%clk 0:00:47]}  Bxc2+ {[%clk 0:00:17]} 31. Rxc2 {[%clk 0:00:45]}  f6 {[%clk 0:00:13]} 32. Rxc3 {[%clk 0:00:41]}  bxc3 {[%clk 0:00:12]} 33. Qxa4 {[%clk 0:00:41]}  c2+ {[%clk 0:00:11]} 34. Kc1 {[%clk 0:00:41]}  Bd6 {[%clk 0:00:08]} 35. Rxe6 {[%clk 0:00:39]}  Rc4 {[%clk 0:00:06]} 36. Qxc4 {[%clk 0:00:37]}  dxc4 {[%clk 0:00:06]} 37. Rxd6 {[%clk 0:00:38]}  cxb3 {[%clk 0:00:02]} 38. axb3 {[%clk 0:00:39]} 1-0

[Event "December 12 Late 2023"]
[Site "https://www.chess.com"]
[Date "2023.12.12"]
[Round "9"]
[White "Prokhorov, Oleksandr"]
[Black "Korol, Dimitry"]
[Result "1/2-1/2"]
[Board "105"]
[TimeControl "180+1"]
[WhiteFideId "14105578"]
[BlackFideId "14108003"]
[WhiteElo "2333"]
[BlackElo "2302"]
[WhiteTeam "UKR"]
[BlackTeam "UKR"]
[WhiteClock "0:01:26"]
[BlackClock "0:01:00"]

1. e4 {[%clk 0:02:58]}  c5 {[%clk 0:03:00]} 2. c3 {[%clk 0:02:56]}  d5 {[%clk 0:03:00]} 3. exd5 {[%clk 0:02:49]}  Qxd5 {[%clk 0:03:00]} 4. d4 {[%clk 0:02:49]}  cxd4 {[%clk 0:03:01]} 5. cxd4 {[%clk 0:02:49]}  Nc6 {[%clk 0:03:02]} 6. Nf3 {[%clk 0:02:48]}  e5 {[%clk 0:03:02]} 7. Nc3 {[%clk 0:02:41]}  Bb4 {[%clk 0:03:02]} 8. Bd2 {[%clk 0:02:41]}  Bxc3 {[%clk 0:03:02]} 9. Bxc3 {[%clk 0:02:40]}  e4 {[%clk 0:03:02]} 10. Ne5 {[%clk 0:02:40]}  Nxe5 {[%clk 0:03:03]} 11. dxe5 {[%clk 0:02:41]}  Ne7 {[%clk 0:03:03]} 12. Be2 {[%clk 0:02:34]}  O-O {[%clk 0:03:02]} 13. O-O {[%clk 0:02:32]}  Qe6 {[%clk 0:02:52]} 14. Qd6 {[%clk 0:02:24]}  Re8 {[%clk 0:02:21]} 15. Rfd1 {[%clk 0:02:15]}  Nc6 {[%clk 0:01:39]} 16. Rac1 {[%clk 0:02:00]}  Qxa2 {[%clk 0:01:16]} 17. Bb5 {[%clk 0:01:46]}  Be6 {[%clk 0:01:10]} 18. Bxc6 {[%clk 0:01:34]}  bxc6 {[%clk 0:01:11]} 19. Qxc6 {[%clk 0:01:34]}  Bf5 {[%clk 0:01:00]} 20. h3 {[%clk 0:01:26]} 1/2-1/2

[Event "December 12 Late 2023"]
[Site "https://www.chess.com"]
[Date "2023.12.12"]
[Round "10"]
[White "Andreikin, Dmitry"]
[Black "Bluebaum, Matthias"]
[Result "1/2-1/2"]
[Board "1"]
[TimeControl "180+1"]
[WhiteFideId "4158814"]
[BlackFideId "24651516"]
[WhiteElo "3124"]
[BlackElo "3064"]
[WhiteTeam "FID"]
[BlackTeam "GER"]
[WhiteClock "0:00:54"]
[BlackClock "0:00:52"]

1. d4 {[%clk 0:03:00]}  d5 {[%clk 0:02:59]} 2. c4 {[%clk 0:03:00]}  e6 {[%clk 0:02:59]} 3. Nf3 {[%clk 0:03:00]}  Nf6 {[%clk 0:03:00]} 4. Bg5 {[%clk 0:03:00]}  Bb4+ {[%clk 0:02:57]} 5. Nc3 {[%clk 0:03:00]}  h6 {[%clk 0:02:57]} 6. Bxf6 {[%clk 0:02:59]}  Qxf6 {[%clk 0:02:58]} 7. Qa4+ {[%clk 0:02:56]}  Nc6 {[%clk 0:02:58]} 8. e3 {[%clk 0:02:56]}  O-O {[%clk 0:02:59]} 9. Rc1 {[%clk 0:02:55]}  Qg6 {[%clk 0:02:58]} 10. Qc2 {[%clk 0:02:50]}  Qxc2 {[%clk 0:02:58]} 11. Rxc2 {[%clk 0:02:50]}  Rd8 {[%clk 0:02:59]} 12. a3 {[%clk 0:02:50]}  Bf8 {[%clk 0:02:59]} 13. Be2 {[%clk 0:02:45]}  dxc4 {[%clk 0:02:49]} 14. Bxc4 {[%clk 0:02:46]}  Ne7 {[%clk 0:02:44]} 15. O-O {[%clk 0:02:44]}  b6 {[%clk 0:02:42]} 16. Bd3 {[%clk 0:02:36]}  Bb7 {[%clk 0:02:39]} 17. Be4 {[%clk 0:02:35]}  c6 {[%clk 0:02:36]} 18. Ne5 {[%clk 0:02:31]}  Rab8 {[%clk 0:02:29]} 19. Rfc1 {[%clk 0:02:30]}  c5 {[%clk 0:02:16]} 20. dxc5 {[%clk 0:02:23]}  bxc5 {[%clk 0:02:15]} 21. Bxb7 {[%clk 0:02:20]}  Rxb7 {[%clk 0:02:16]} 22. Nc4 {[%clk 0:02:15]}  Nd5 {[%clk 0:02:01]} 23. Kf1 {[%clk 0:02:14]}  Nxc3 {[%clk 0:01:58]} 24. Rxc3 {[%clk 0:02:13]}  Be7 {[%clk 0:01:59]} 25. Ke2 {[%clk 0:01:51]}  Bf6 {[%clk 0:01:58]} 26. R3c2 {[%clk 0:01:51]}  Rdb8 {[%clk 0:01:57]} 27. Kf3 {[%clk 0:01:48]}  Bxb2 {[%clk 0:01:53]} 28. Nxb2 {[%clk 0:01:43]}  Rxb2 {[%clk 0:01:54]} 29. Rxb2 {[%clk 0:01:41]}  Rxb2 {[%clk 0:01:55]} 30. Rxc5 {[%clk 0:01:41]}  Rb7 {[%clk 0:01:48]} 31. Ra5 {[%clk 0:01:40]}  g5 {[%clk 0:01:37]} 32. h4 {[%clk 0:01:36]}  gxh4 {[%clk 0:01:29]} 33. Ra4 {[%clk 0:01:34]}  Kg7 {[%clk 0:01:22]} 34. Rxh4 {[%clk 0:01:33]}  a5 {[%clk 0:01:22]} 35. Rc4 {[%clk 0:01:18]}  Rb3 {[%clk 0:01:18]} 36. a4 {[%clk 0:01:17]}  Ra3 {[%clk 0:01:14]} 37. g4 {[%clk 0:01:17]}  Ra2 {[%clk 0:01:14]} 38. Kg3 {[%clk 0:01:16]}  Kg6 {[%clk 0:01:08]} 39. f4 {[%clk 0:01:15]}  Ra3 {[%clk 0:00:54]} 40. Kf3 {[%clk 0:01:15]}  Ra2 {[%clk 0:00:54]} 41. Ke4 {[%clk 0:01:10]}  Rg2 {[%clk 0:00:52]} 42. Kf3 {[%clk 0:01:04]}  Ra2 {[%clk 0:00:52]} 43. Ke4 {[%clk 0:01:04]}  Rg2 {[%clk 0:00:52]} 44. Kf3 {[%clk 0:00:54]}  Ra2 {[%clk 0:00:52]} 1/2-1/2

[Event "December 12 Late 2023"]
[Site "https://www.chess.com"]
[Date "2023.12.12"]
[Round "10"]
[White "Hakobyan, Aram"]
[Black "Melkumyan, Hrant"]
[Result "1/2-1/2"]
[Board "3"]
[TimeControl "180+1"]
[WhiteFideId "13306677"]
[BlackFideId "13302485"]
[WhiteElo "3035"]
[BlackElo "2934"]
[WhiteTeam "ARM"]
[BlackTeam "ARM"]
[WhiteClock "0:00:03"]
[BlackClock "0:00:06"]

1. e4 {[%clk 0:03:00]}  e5 {[%clk 0:02:59]} 2. Nf3 {[%clk 0:03:01]}  Nc6 {[%clk 0:03:00]} 3. Nc3 {[%clk 0:03:02]}  Nf6 {[%clk 0:03:00]} 4. Nd5 {[%clk 0:03:02]}  Nxe4 {[%clk 0:02:45]} 5. Qe2 {[%clk 0:02:52]}  Nf6 {[%clk 0:02:40]} 6. Nxe5 {[%clk 0:02:53]}  Be7 {[%clk 0:02:11]} 7. Nxc6 {[%clk 0:02:52]}  dxc6 {[%clk 0:02:08]} 8. Qxe7+ {[%clk 0:02:53]}  Qxe7+ {[%clk 0:02:07]} 9. Nxe7 {[%clk 0:02:53]}  Kxe7 {[%clk 0:02:07]} 10. f3 {[%clk 0:02:54]}  h5 {[%clk 0:02:00]} 11. h4 {[%clk 0:02:50]}  Be6 {[%clk 0:02:00]} 12. Kf2 {[%clk 0:02:48]}  Kd7 {[%clk 0:01:58]} 13. d3 {[%clk 0:02:43]}  a5 {[%clk 0:01:55]} 14. a3 {[%clk 0:02:41]}  Ne8 {[%clk 0:01:46]} 15. Bd2 {[%clk 0:02:37]}  Nd6 {[%clk 0:01:46]} 16. Be2 {[%clk 0:02:35]}  c5 {[%clk 0:01:43]} 17. g4 {[%clk 0:02:27]}  hxg4 {[%clk 0:01:26]} 18. fxg4 {[%clk 0:02:27]}  f6 {[%clk 0:01:27]} 19. Rag1 {[%clk 0:02:24]}  b6 {[%clk 0:01:21]} 20. h5 {[%clk 0:02:22]}  Raf8 {[%clk 0:01:19]} 21. Ke1 {[%clk 0:02:22]}  Nf7 {[%clk 0:01:19]} 22. Be3 {[%clk 0:02:03]}  Ng5 {[%clk 0:01:19]} 23. Rg3 {[%clk 0:01:51]}  Re8 {[%clk 0:01:19]} 24. Kd2 {[%clk 0:01:47]}  Re7 {[%clk 0:01:19]} 25. Bd1 {[%clk 0:01:31]}  Bd5 {[%clk 0:01:12]} 26. Rh2 {[%clk 0:01:21]}  Rhe8 {[%clk 0:01:09]} 27. Rf2 {[%clk 0:01:10]}  Re5 {[%clk 0:01:04]} 28. Bf4 {[%clk 0:01:01]}  R5e7 {[%clk 0:01:01]} 29. Be3 {[%clk 0:00:53]}  Re5 {[%clk 0:01:01]} 30. h6 {[%clk 0:00:32]}  gxh6 {[%clk 0:01:00]} 31. Rxf6 {[%clk 0:00:32]}  R8e6 {[%clk 0:01:01]} 32. Rxe6 {[%clk 0:00:28]}  Rxe6 {[%clk 0:01:01]} 33. Rg1 {[%clk 0:00:18]}  Rf6 {[%clk 0:01:02]} 34. Be2 {[%clk 0:00:14]}  Ke6 {[%clk 0:00:58]} 35. Rg3 {[%clk 0:00:06]}  Kf7 {[%clk 0:00:55]} 36. Rg1 {[%clk 0:00:05]}  Kg6 {[%clk 0:00:54]} 37. Rg3 {[%clk 0:00:06]}  Rf7 {[%clk 0:00:51]} 38. Ke1 {[%clk 0:00:06]}  Re7 {[%clk 0:00:49]} 39. Kd2 {[%clk 0:00:06]}  Re8 {[%clk 0:00:49]} 40. Kd1 {[%clk 0:00:05]}  Re7 {[%clk 0:00:46]} 41. Kd2 {[%clk 0:00:06]}  c4 {[%clk 0:00:42]} 42. Bf4 {[%clk 0:00:01]}  Ne6 {[%clk 0:00:32]} 43. Be3 {[%clk 0:00:02]}  Ng5 {[%clk 0:00:32]} 44. Bf4 {[%clk 0:00:02]}  Ne6 {[%clk 0:00:27]} 45. Be3 {[%clk 0:00:03]}  Rd7 {[%clk 0:00:28]} 46. Ke1 {[%clk 0:00:03]}  b5 {[%clk 0:00:22]} 47. dxc4 {[%clk 0:00:03]}  Bxc4 {[%clk 0:00:23]} 48. Bxc4 {[%clk 0:00:03]}  bxc4 {[%clk 0:00:24]} 49. Rf3 {[%clk 0:00:03]}  Rd5 {[%clk 0:00:20]} 50. Rf5 {[%clk 0:00:03]}  Rxf5 {[%clk 0:00:15]} 51. gxf5+ {[%clk 0:00:03]}  Kxf5 {[%clk 0:00:16]} 52. Bxh6 {[%clk 0:00:04]}  a4 {[%clk 0:00:16]} 53. Kd2 {[%clk 0:00:04]}  Ke4 {[%clk 0:00:17]} 54. Kc3 {[%clk 0:00:05]}  Kd5 {[%clk 0:00:15]} 55. Kb4 {[%clk 0:00:05]}  Nc5 {[%clk 0:00:06]} 56. Be3 {[%clk 0:00:04]}  Ne4 {[%clk 0:00:02]} 57. Kxa4 {[%clk 0:00:04]}  c6 {[%clk 0:00:01]} 58. Kb4 {[%clk 0:00:04]}  Nf6 {[%clk 0:00:01]} 59. a4 {[%clk 0:00:05]}  Ng4 {[%clk 0:00:01]} 60. Bc5 {[%clk 0:00:05]}  Ne5 {[%clk 0:00:01]} 61. a5 {[%clk 0:00:06]}  Nd7 {[%clk 0:00:02]} 62. Bg1 {[%clk 0:00:06]}  Nb8 {[%clk 0:00:02]} 63. Kc3 {[%clk 0:00:04]}  Na6 {[%clk 0:00:03]} 64. Bb6 {[%clk 0:00:05]}  Nb8 {[%clk 0:00:03]} 65. Bc7 {[%clk 0:00:05]}  Na6 {[%clk 0:00:03]} 66. Bh2 {[%clk 0:00:06]}  Nc5 {[%clk 0:00:04]} 67. Kb4 {[%clk 0:00:05]}  Na6+ {[%clk 0:00:04]} 68. Ka4 {[%clk 0:00:05]}  Nc5+ {[%clk 0:00:05]} 69. Ka3 {[%clk 0:00:06]}  Na6 {[%clk 0:00:06]} 70. Bg1 {[%clk 0:00:06]}  Nc7 {[%clk 0:00:05]} 71. Kb4 {[%clk 0:00:06]}  Na6+ {[%clk 0:00:05]} 72. Kc3 {[%clk 0:00:06]}  Nc7 {[%clk 0:00:05]} 73. Kd2 {[%clk 0:00:07]}  Na6 {[%clk 0:00:05]} 74. Bb6 {[%clk 0:00:07]}  Nb8 {[%clk 0:00:04]} 75. Ke3 {[%clk 0:00:08]}  Na6 {[%clk 0:00:04]} 76. Ke2 {[%clk 0:00:08]}  c5 {[%clk 0:00:04]} 77. Bd8 {[%clk 0:00:08]}  Kc6 {[%clk 0:00:04]} 78. Kd2 {[%clk 0:00:08]}  Kb5 {[%clk 0:00:05]} 79. Kc3 {[%clk 0:00:09]}  Nb4 {[%clk 0:00:05]} 80. Kd2 {[%clk 0:00:08]}  Nc6 {[%clk 0:00:05]} 81. Bc7 {[%clk 0:00:07]}  Nb4 {[%clk 0:00:06]} 82. Bd8 {[%clk 0:00:05]}  Nc6 {[%clk 0:00:06]} 83. Bb6 {[%clk 0:00:06]}  Nb4 {[%clk 0:00:06]} 84. Bc7 {[%clk 0:00:06]}  Nc6 {[%clk 0:00:07]} 85. Ke3 {[%clk 0:00:05]}  Nd4 {[%clk 0:00:06]} 86. Kd2 {[%clk 0:00:04]}  Nc6 {[%clk 0:00:06]} 87. Bb6 {[%clk 0:00:03]}  Nb4 {[%clk 0:00:06]} 88. Bd8 {[%clk 0:00:03]} 1/2-1/2